[Event "SS Manhem Chess Week 2019 Goteborg Open"]
[Site "Molnlycke kulturhus, Biblioteksgatan 2, Molnlycke, Sweden"]
[Date "2019.08.16"]
[Round "2.18"]
[White "Malmstig, Erik"]
[Black "Carlfors, Viktor"]
[Result "0-1"]
[TimeControl "15 minutes + 5 seconds per move from move one (Round 1 - 4) / 90 minutes + 30 seconds per move from move one (Round 5 - 8)"]
[WhiteTitle "FM"]
[WhiteFideId "1702866"]
[BlackFideId "1740725"]
[WhiteElo "2335"]
[BlackElo "1820"]

1. d4 {[%clk 00:15:09]} {[%emt 00:02:18]} d5 {[%clk 00:15:09]} {[%emt
00:00:02]} 2. c4 {[%clk 00:15:08]} {[%emt 00:00:05]} c6 {[%clk 00:15:12]}
{[%emt 00:00:02]} 3. Nc3 {[%clk 00:15:07]} {[%emt 00:00:08]} Nf6 {[%clk
00:15:15]} 4. Nf3 {[%clk 00:15:03]} {[%emt 00:00:08]} dxc4 {[%clk 00:15:18]}
{[%emt 00:00:03]} 5. a4 {[%clk 00:15:05]} {[%emt 00:00:03]} Bf5 {[%clk
00:15:21]} {[%emt 00:00:02]} 6. Nh4 {[%clk 00:14:55]} {[%emt 00:00:13]} Bg6
{[%clk 00:14:53]} {[%emt 00:00:36]} 7. Nxg6 {[%clk 00:14:40]} {[%emt 00:00:20]}
hxg6 {[%clk 00:14:56]} {[%emt 00:00:01]} 8. e4 {[%clk 00:14:38]} {[%emt
00:00:07]} e6 {[%clk 00:14:48]} {[%emt 00:00:13]} 9. Bxc4 {[%clk 00:14:37]}
{[%emt 00:00:07]} Bb4 {[%clk 00:14:41]} {[%emt 00:00:11]} 10. f3 {[%clk
00:14:29]} {[%emt 00:00:13]} Qc7 {[%clk 00:14:18]} {[%emt 00:00:29]} 11. Qb3
{[%clk 00:13:23]} {[%emt 00:01:11]} a5 {[%clk 00:13:06]} {[%emt 00:01:17]} 12.
e5 {[%clk 00:13:12]} {[%emt 00:00:15]} Nd5 {[%clk 00:12:57]} {[%emt 00:00:13]}
13. O-O {[%clk 00:13:05]} {[%emt 00:00:13]} Nd7 {[%clk 00:10:55]} {[%emt
00:02:07]} 14. Bxd5 {[%clk 00:12:02]} {[%emt 00:01:08]} cxd5 {[%clk 00:10:50]}
{[%emt 00:00:10]} 15. Nb5 {[%clk 00:11:44]} {[%emt 00:00:23]} Qb6 {[%clk
00:10:41]} {[%emt 00:00:15]} 16. Bf4 {[%clk 00:11:19]} {[%emt 00:00:30]} Rh4
{[%clk 00:09:58]} {[%emt 00:00:47]} 17. Bg3 {[%clk 00:09:39]} {[%emt 00:01:46]}
Rh5 {[%clk 00:09:47]} {[%emt 00:00:16]} 18. Rac1 {[%clk 00:09:33]} {[%emt
00:00:12]} Kf8 {[%clk 00:08:22]} {[%emt 00:01:25]} 19. Kh1 {[%clk 00:08:25]}
{[%emt 00:01:18]} Rf5 {[%clk 00:08:02]} {[%emt 00:00:25]} 20. Rc7 {[%clk
00:08:03]} {[%emt 00:00:27]} Rd8 {[%clk 00:08:05]} {[%emt 00:00:01]} 21. Rfc1
{[%clk 00:07:31]} {[%emt 00:00:38]} g5 {[%clk 00:07:46]} {[%emt 00:00:24]} 22.
Qe3 {[%clk 00:06:59]} {[%emt 00:00:37]} Nb8 {[%clk 00:06:57]} {[%emt 00:00:55]}
23. Nd6 {[%clk 00:05:47]} {[%emt 00:01:16]} Bxd6 {[%clk 00:06:54]} {[%emt
00:00:08]} 24. exd6 {[%clk 00:05:51]} {[%emt 00:00:01]} Nc6 {[%clk 00:06:37]}
{[%emt 00:00:22]} 25. d7 {[%clk 00:05:39]} {[%emt 00:00:17]} Ke7 {[%clk
00:04:53]} {[%emt 00:01:48]} 26. Qa3+ {[%clk 00:04:42]} {[%emt 00:01:02]} Nb4
{[%clk 00:04:56]} {[%emt 00:00:02]} 27. Qc3 {[%clk 00:03:56]} {[%emt 00:00:51]}
Nc6 {[%clk 00:04:19]} {[%emt 00:00:42]} 28. Qa3+ {[%clk 00:02:26]} {[%emt
00:01:35]} Nb4 {[%clk 00:04:22]} {[%emt 00:00:02]} 29. R7c5 {[%emt 00:01:37]}
Rxd7 {[%clk 00:03:28]} {[%emt 00:00:01]} 30. Bc7 {[%clk 00:01:50]} {[%emt
00:00:07]} Qa6 {[%clk 00:01:24]} {[%emt 00:02:09]} 31. Rxa5 {[%clk 00:01:29]}
{[%emt 00:00:27]} Qd3 {[%clk 00:01:09]} {[%emt 00:00:20]} 32. Qxb4+ {[%clk
00:01:26]} {[%emt 00:00:08]} Kf6 {[%clk 00:01:08]} {[%emt 00:00:06]} 33. Be5+
{[%clk 00:01:22]} {[%emt 00:00:10]} Kg6 {[%clk 00:01:12]} 34. Qc3 {[%clk
00:01:18]} {[%emt 00:00:08]} Qe2 {[%clk 00:00:59]} {[%emt 00:00:17]} 35. b3
{[%clk 00:01:11]} {[%emt 00:00:13]} g4 {[%clk 00:01:00]} {[%emt 00:00:04]} 36.
f4 {[%clk 00:01:00]} {[%emt 00:00:17]} f6 {[%clk 00:00:25]} {[%emt 00:00:40]}
37. Re1 {[%clk 00:00:53]} {[%emt 00:00:12]} Qf2 {[%clk 00:00:18]} {[%emt
00:00:11]} 38. Bb8 {[%clk 00:00:40]} {[%emt 00:00:19]} b6 {[%clk 00:00:22]}
{[%emt 00:00:01]} 39. Ra6 {[%clk 00:00:20]} {[%emt 00:00:19]} Rh5 {[%clk
00:00:23]} {[%emt 00:00:09]} 40. f5+ {[%clk 00:00:07]} {[%emt 00:00:19]} Rxf5
{[%clk 00:00:26]} {[%emt 00:00:02]} 0-1

[Event "SS Manhem Chess Week 2019 Goteborg Open"]
[Site "Molnlycke kulturhus, Biblioteksgatan 2, Molnlycke, Sweden"]
[Date "2019.08.16"]
[Round "3.1"]
[White "Blomqvist, Erik"]
[Black "Kockum, Anton Frisk"]
[Result "0-1"]
[TimeControl "15 minutes + 5 seconds per move from move one (Round 1 - 4) / 90 minutes + 30 seconds per move from move one (Round 5 - 8)"]
[WhiteTitle "GM"]
[BlackTitle "FM"]
[WhiteFideId "1709437"]
[BlackFideId "1709143"]
[WhiteElo "2507"]
[BlackElo "2367"]

1. e4 {[%clk 00:15:08]} {[%emt 00:00:01]} e6 {[%clk 00:15:09]} {[%emt
00:00:01]} 2. d4 {[%clk 00:15:12]} {[%emt 00:00:03]} d5 {[%clk 00:15:13]} 3. e5
{[%clk 00:15:16]} {[%emt 00:00:01]} c5 {[%clk 00:15:16]} {[%emt 00:00:02]} 4.
c3 {[%clk 00:15:20]} {[%emt 00:00:01]} Nc6 {[%clk 00:15:20]} {[%emt 00:00:03]}
5. Nf3 {[%clk 00:15:24]} Bd7 {[%clk 00:15:21]} {[%emt 00:00:04]} 6. Be2 {[%clk
00:15:26]} {[%emt 00:00:03]} Nge7 {[%clk 00:15:03]} {[%emt 00:00:22]} 7. O-O
{[%clk 00:15:26]} {[%emt 00:00:04]} Nf5 {[%clk 00:14:46]} {[%emt 00:00:22]} 8.
dxc5 {[%clk 00:15:25]} {[%emt 00:00:07]} Bxc5 {[%clk 00:14:39]} {[%emt
00:00:12]} 9. Bd3 {[%clk 00:15:26]} {[%emt 00:00:03]} Nh4 {[%clk 00:12:56]}
{[%emt 00:01:48]} 10. Re1 {[%clk 00:13:04]} {[%emt 00:02:27]} f5 {[%clk
00:08:23]} {[%emt 00:04:38]} 11. Nbd2 {[%clk 00:12:47]} {[%emt 00:00:21]} O-O
{[%clk 00:08:01]} {[%emt 00:00:27]} 12. b4 {[%clk 00:11:48]} {[%emt 00:01:04]}
Bb6 {[%clk 00:07:56]} {[%emt 00:00:10]} 13. a4 {[%clk 00:11:51]} {[%emt
00:00:02]} Rc8 {[%clk 00:06:55]} {[%emt 00:01:06]} 14. Qe2 {[%clk 00:11:30]}
{[%emt 00:00:26]} Be8 {[%clk 00:05:22]} {[%emt 00:01:38]} 15. Nxh4 {[%clk
00:11:18]} {[%emt 00:00:18]} Qxh4 {[%clk 00:05:25]} {[%emt 00:00:02]} 16. Nf3
{[%clk 00:11:20]} {[%emt 00:00:03]} Qg4 {[%clk 00:04:48]} {[%emt 00:00:42]} 17.
h3 {[%clk 00:10:17]} {[%emt 00:01:08]} Qh5 {[%clk 00:04:51]} {[%emt 00:00:03]}
18. Be3 {[%clk 00:09:30]} {[%emt 00:00:51]} Bxe3 {[%clk 00:04:21]} {[%emt
00:00:35]} 19. Qxe3 {[%clk 00:09:33]} {[%emt 00:00:01]} f4 {[%clk 00:04:23]}
{[%emt 00:00:03]} 20. Qd2 {[%clk 00:09:22]} {[%emt 00:00:17]} Bg6 {[%clk
00:03:58]} {[%emt 00:00:30]} 21. Bxg6 {[%clk 00:08:09]} {[%emt 00:01:18]} Qxg6
{[%clk 00:04:01]} {[%emt 00:00:01]} 22. a5 {[%clk 00:08:11]} {[%emt 00:00:03]}
a6 {[%clk 00:02:56]} {[%emt 00:01:11]} 23. Rac1 {[%clk 00:07:45]} {[%emt
00:00:31]} Ne7 {[%clk 00:02:53]} {[%emt 00:00:09]} 24. Kh2 {[%clk 00:06:15]}
{[%emt 00:01:35]} Rc4 {[%clk 00:02:56]} {[%emt 00:00:02]} 25. Qb2 {[%clk
00:05:12]} {[%emt 00:01:08]} Rfc8 {[%clk 00:00:31]} {[%emt 00:02:30]} 26. b5
{[%clk 00:04:34]} {[%emt 00:00:43]} Qe8 {[%clk 00:00:35]} {[%emt 00:00:01]} 27.
Nd4 {[%clk 00:04:29]} {[%emt 00:00:09]} Ng6 {[%clk 00:00:19]} {[%emt 00:00:21]}
28. bxa6 {[%clk 00:04:26]} {[%emt 00:00:08]} bxa6 {[%emt 00:00:01]} 29. Qb6
{[%clk 00:04:27]} {[%emt 00:00:04]} Nf8 {[%clk 00:00:16]} {[%emt 00:00:13]} 30.
Qxa6 {[%emt 00:00:14]} Ra8 {[%clk 00:00:12]} {[%emt 00:00:04]} 31. Qb6 {[%emt
00:00:13]} Ra4 {[%emt 00:01:54]} 32. Ra1 {[%clk 00:02:23]} {[%emt 00:00:12]}
R8xa5 {[%clk 00:00:12]} {[%emt 00:00:01]} 33. Rxa4 {[%clk 00:02:27]} Rxa4
{[%clk 00:00:16]} 34. Rb1 {[%clk 00:02:30]} {[%emt 00:00:01]} Ra8 {[%emt
00:01:09]} 35. Rb4 {[%clk 00:01:30]} {[%emt 00:00:05]} h6 {[%clk 00:00:17]}
{[%emt 00:00:02]} 36. c4 {[%clk 00:01:05]} {[%emt 00:00:30]} dxc4 {[%clk
00:00:19]} {[%emt 00:00:03]} 37. Rxc4 {[%clk 00:01:07]} {[%emt 00:00:02]} Rb8
{[%clk 00:00:17]} {[%emt 00:00:07]} 38. Qa7 {[%clk 00:00:57]} {[%emt 00:00:14]}
Ra8 {[%clk 00:00:12]} {[%emt 00:00:11]} 39. Qb7 {[%clk 00:00:57]} {[%emt
00:00:05]} Rb8 {[%clk 00:00:15]} {[%emt 00:00:01]} 40. Qe4 {[%clk 00:00:58]}
{[%emt 00:00:04]} Qf7 {[%clk 00:00:10]} {[%emt 00:00:11]} 41. Nc6 {[%clk
00:00:51]} {[%emt 00:00:12]} Rb2 {[%clk 00:00:07]} {[%emt 00:00:08]} 42. Qd4
{[%clk 00:00:31]} {[%emt 00:00:24]} Re2 {[%clk 00:00:08]} {[%emt 00:00:05]} 43.
Rc3 {[%clk 00:00:26]} {[%emt 00:00:10]} Ra2 {[%clk 00:00:07]} {[%emt 00:00:06]}
44. Nb4 {[%clk 00:00:10]} {[%emt 00:00:21]} Ra8 {[%clk 00:00:08]} {[%emt
00:00:04]} 45. Qe4 {[%clk 00:00:11]} {[%emt 00:00:04]} Rb8 {[%clk 00:00:11]}
{[%emt 00:00:03]} 46. Nd3 {[%clk 00:00:14]} {[%emt 00:00:02]} Ng6 {[%clk
00:00:13]} {[%emt 00:00:02]} 47. Nc5 {[%clk 00:00:17]} {[%emt 00:00:02]} Rb2
{[%clk 00:00:13]} {[%emt 00:00:05]} 48. Qd4 {[%clk 00:00:18]} {[%emt 00:00:04]}
Qf5 {[%clk 00:00:14]} {[%emt 00:00:04]} 49. Nd3 {[%clk 00:00:15]} {[%emt
00:00:07]} Rb8 {[%clk 00:00:15]} {[%emt 00:00:03]} 50. Rc7 {[%clk 00:00:16]}
{[%emt 00:00:05]} Rf8 {[%clk 00:00:12]} {[%emt 00:00:08]} 51. Ne1 {[%clk
00:00:08]} {[%emt 00:00:14]} Qxe5 {[%clk 00:00:12]} {[%emt 00:00:04]} 52. Qxe5
{[%clk 00:00:07]} {[%emt 00:00:06]} Nxe5 {[%clk 00:00:14]} {[%emt 00:00:03]} 53.
Re7 {[%clk 00:00:11]} {[%emt 00:00:01]} Rf6 {[%clk 00:00:16]} {[%emt 00:00:04]}
54. Nc2 {[%clk 00:00:14]} {[%emt 00:00:02]} Kf8 {[%clk 00:00:15]} {[%emt
00:00:06]} 55. Ra7 {[%clk 00:00:17]} {[%emt 00:00:01]} Nc6 {[%clk 00:00:12]}
{[%emt 00:00:07]} 56. Rc7 {[%clk 00:00:21]} {[%emt 00:00:02]} e5 {[%clk
00:00:16]} {[%emt 00:00:02]} 57. h4 {[%clk 00:00:24]} {[%emt 00:00:03]} e4
{[%clk 00:00:16]} {[%emt 00:00:05]} 58. Kh3 {[%clk 00:00:25]} {[%emt 00:00:04]}
h5 {[%clk 00:00:18]} {[%emt 00:00:03]} 59. g3 {[%clk 00:00:21]} {[%emt
00:00:09]} e3 {[%clk 00:00:12]} {[%emt 00:00:11]} 60. fxe3 {[%clk 00:00:09]}
{[%emt 00:00:16]} f3 {[%clk 00:00:17]} 61. e4 {[%clk 00:00:11]} {[%emt
00:00:02]} f2 {[%clk 00:00:18]} {[%emt 00:00:03]} 62. Ne3 {[%clk 00:00:15]}
{[%emt 00:00:01]} Ne5 {[%clk 00:00:20]} {[%emt 00:00:04]} 63. Kg2 {[%clk
00:00:15]} {[%emt 00:00:05]} Ng4 {[%clk 00:00:17]} {[%emt 00:00:08]} 64. Nf1
{[%clk 00:00:07]} {[%emt 00:00:13]} Re6 {[%clk 00:00:18]} {[%emt 00:00:04]} 65.
Rc5 {[%clk 00:00:07]} {[%emt 00:00:05]} g6 {[%clk 00:00:18]} {[%emt 00:00:05]}
66. Kf3 {[%clk 00:00:09]} {[%emt 00:00:03]} Kf7 {[%clk 00:00:15]} {[%emt
00:00:08]} 67. Ra5 {[%clk 00:00:12]} {[%emt 00:00:02]} Rb6 {[%clk 00:00:16]}
{[%emt 00:00:04]} 68. Ra1 {[%clk 00:00:14]} {[%emt 00:00:03]} Ke6 {[%clk
00:00:13]} {[%emt 00:00:07]} 69. Rd1 {[%clk 00:00:10]} {[%emt 00:00:09]} Rb2
{[%clk 00:00:13]} {[%emt 00:00:05]} 70. Kg2 {[%clk 00:00:09]} {[%emt 00:00:06]}
Ke5 {[%clk 00:00:15]} {[%emt 00:00:03]} 71. Kf3 {[%clk 00:00:07]} {[%emt
00:00:07]} Rb3+ {[%clk 00:00:17]} {[%emt 00:00:04]} 72. Kg2 {[%clk 00:00:08]}
{[%emt 00:00:04]} Ra3 {[%clk 00:00:18]} {[%emt 00:00:04]} 73. Nd2 {[%clk
00:00:08]} {[%emt 00:00:06]} Ne3+ {[%clk 00:00:21]} {[%emt 00:00:02]} 74. Kh2
{[%clk 00:00:07]} {[%emt 00:00:06]} Nxd1 {[%clk 00:00:23]} {[%emt 00:00:03]}
0-1

[Event "SS Manhem Chess Week 2019 Goteborg Open"]
[Site "Molnlycke kulturhus, Biblioteksgatan 2, Molnlycke, Sweden"]
[Date "2019.08.16"]
[Round "3.2"]
[White "Golubka, Petro"]
[Black "Rydstrom, Tom"]
[Result "1-0"]
[TimeControl "15 minutes + 5 seconds per move from move one (Round 1 - 4) / 90 minutes + 30 seconds per move from move one (Round 5 - 8)"]
[WhiteTitle "IM"]
[BlackTitle "FM"]
[WhiteFideId "14114224"]
[BlackFideId "1714830"]
[WhiteElo "2479"]
[BlackElo "2314"]

1. e4 {[%clk 00:15:05]} {[%emt 00:00:02]} e5 {[%clk 00:15:07]} {[%emt
00:00:04]} 2. Nf3 {[%clk 00:15:07]} {[%emt 00:00:03]} Nc6 {[%clk 00:15:10]}
{[%emt 00:00:02]} 3. Bb5 {[%clk 00:15:10]} {[%emt 00:00:02]} a6 {[%clk
00:15:15]} {[%emt 00:00:02]} 4. Ba4 {[%clk 00:15:14]} Nf6 {[%clk 00:15:19]} 5.
d3 {[%clk 00:15:14]} {[%emt 00:00:06]} b5 {[%clk 00:15:23]} {[%emt 00:00:01]} 6.
Bb3 {[%clk 00:15:18]} Bc5 {[%clk 00:15:22]} {[%emt 00:00:06]} 7. a4 {[%clk
00:15:18]} {[%emt 00:00:05]} Rb8 {[%clk 00:15:02]} {[%emt 00:00:25]} 8. axb5
{[%clk 00:15:20]} {[%emt 00:00:02]} axb5 {[%clk 00:15:06]} {[%emt 00:00:01]} 9.
O-O {[%clk 00:15:18]} {[%emt 00:00:06]} O-O {[%clk 00:14:59]} {[%emt 00:00:12]}
10. Nc3 {[%clk 00:15:18]} {[%emt 00:00:05]} h6 {[%clk 00:15:00]} {[%emt
00:00:05]} 11. Nd5 {[%clk 00:14:54]} {[%emt 00:00:29]} d6 {[%clk 00:15:04]}
{[%emt 00:00:01]} 12. c3 {[%clk 00:14:52]} {[%emt 00:00:06]} Nxd5 {[%clk
00:12:22]} {[%emt 00:02:47]} 13. Bxd5 {[%clk 00:14:55]} {[%emt 00:00:02]} Ne7
{[%clk 00:12:01]} {[%emt 00:00:27]} 14. Bb3 {[%clk 00:14:58]} {[%emt 00:00:02]}
Ng6 {[%clk 00:11:56]} {[%emt 00:00:10]} 15. Be3 {[%clk 00:14:26]} {[%emt
00:00:37]} Bxe3 {[%clk 00:11:13]} {[%emt 00:00:48]} 16. fxe3 {[%clk 00:14:28]}
{[%emt 00:00:02]} c5 {[%clk 00:10:38]} {[%emt 00:00:41]} 17. Nd2 {[%clk
00:14:01]} {[%emt 00:00:32]} Be6 {[%clk 00:09:15]} {[%emt 00:01:28]} 18. Bxe6
{[%clk 00:13:49]} {[%emt 00:00:18]} fxe6 {[%clk 00:09:18]} {[%emt 00:00:01]} 19.
Qg4 {[%clk 00:13:18]} {[%emt 00:00:35]} Rxf1+ {[%clk 00:08:58]} {[%emt
00:00:27]} 20. Rxf1 {[%clk 00:13:04]} {[%emt 00:00:18]} Nf8 {[%clk 00:09:02]}
21. d4 {[%clk 00:12:49]} {[%emt 00:00:21]} exd4 {[%clk 00:08:10]} {[%emt
00:00:57]} 22. exd4 {[%clk 00:12:51]} {[%emt 00:00:03]} cxd4 {[%clk 00:07:34]}
{[%emt 00:00:42]} 23. cxd4 {[%clk 00:12:52]} {[%emt 00:00:03]} Qe7 {[%clk
00:07:07]} {[%emt 00:00:31]} 24. Qg3 {[%clk 00:12:20]} {[%emt 00:00:37]} Rc8
{[%clk 00:06:31]} {[%emt 00:00:42]} 25. Qd3 {[%clk 00:11:32]} {[%emt 00:00:53]}
Qb7 {[%clk 00:06:00]} {[%emt 00:00:37]} 26. Nf3 {[%clk 00:11:15]} {[%emt
00:00:21]} b4 {[%clk 00:05:53]} {[%emt 00:00:12]} 27. e5 {[%clk 00:10:43]}
{[%emt 00:00:37]} Qd5 {[%clk 00:05:00]} {[%emt 00:00:58]} 28. h3 {[%clk
00:09:58]} {[%emt 00:00:50]} Nd7 {[%clk 00:04:37]} {[%emt 00:00:28]} 29. Qa6
{[%clk 00:09:25]} {[%emt 00:00:38]} Qc6 {[%clk 00:04:25]} {[%emt 00:00:15]} 30.
Qxc6 {[%clk 00:09:10]} {[%emt 00:00:22]} Rxc6 {[%clk 00:04:29]} 31. exd6 {[%clk
00:06:24]} {[%emt 00:02:50]} Rxd6 {[%clk 00:04:33]} {[%emt 00:00:01]} 32. Rc1
{[%clk 00:06:19]} {[%emt 00:00:09]} Rb6 {[%clk 00:03:06]} {[%emt 00:01:31]} 33.
Rc8+ {[%clk 00:05:57]} {[%emt 00:00:28]} Kf7 {[%clk 00:02:24]} {[%emt
00:00:47]} 34. Kf2 {[%clk 00:05:35]} {[%emt 00:00:27]} Ke7 {[%clk 00:02:25]}
{[%emt 00:00:05]} 35. Ke2 {[%clk 00:05:28]} {[%emt 00:00:12]} Rb5 {[%clk
00:01:38]} {[%emt 00:00:52]} 36. Kd3 {[%clk 00:05:16]} {[%emt 00:00:17]} Rb7
{[%clk 00:01:12]} {[%emt 00:00:32]} 37. Rg8 {[%clk 00:04:44]} {[%emt 00:00:35]}
Kf7 {[%clk 00:01:14]} {[%emt 00:00:03]} 38. Ra8 {[%clk 00:04:42]} {[%emt
00:00:07]} Kf6 {[%clk 00:01:11]} {[%emt 00:00:08]} 39. Nd2 {[%clk 00:04:28]}
{[%emt 00:00:19]} Ke7 {[%clk 00:00:11]} {[%emt 00:01:05]} 40. Ne4 {[%clk
00:04:20]} {[%emt 00:00:11]} Rc7 {[%clk 00:00:11]} {[%emt 00:00:07]} 41. Ra4
{[%clk 00:04:08]} {[%emt 00:00:16]} Rb7 {[%clk 00:00:10]} {[%emt 00:00:07]} 42.
Nc5 {[%clk 00:04:01]} {[%emt 00:00:12]} Nxc5+ {[%clk 00:00:11]} {[%emt
00:00:04]} 43. dxc5 {[%clk 00:04:04]} {[%emt 00:00:02]} Rd7+ {[%clk 00:00:06]}
{[%emt 00:00:10]} 44. Kc4 {[%clk 00:04:00]} {[%emt 00:00:09]} Rd2 {[%clk
00:00:10]} {[%emt 00:00:01]} 45. Rxb4 {[%clk 00:04:04]} {[%emt 00:00:01]} Rxg2
{[%clk 00:00:14]} {[%emt 00:00:01]} 46. Rb7+ {[%clk 00:04:06]} {[%emt
00:00:02]} Kd8 {[%clk 00:00:07]} {[%emt 00:00:13]} 47. b4 {[%clk 00:04:02]}
{[%emt 00:00:09]} g5 {[%clk 00:00:07]} {[%emt 00:00:06]} 48. c6 {[%clk
00:02:59]} {[%emt 00:04:31]} Rh2 {[%clk 00:00:11]} 49. b5 {[%clk 00:02:51]}
{[%emt 00:00:13]} Rxh3 {[%clk 00:00:15]} {[%emt 00:00:01]} 50. b6 {[%clk
00:02:37]} {[%emt 00:00:19]} 1-0

[Event "SS Manhem Chess Week 2019 Goteborg Open"]
[Site "Molnlycke kulturhus, Biblioteksgatan 2, Molnlycke, Sweden"]
[Date "2019.08.16"]
[Round "3.3"]
[White "Welin, Mats"]
[Black "Wiedenkeller, Michael"]
[Result "0-1"]
[TimeControl "15 minutes + 5 seconds per move from move one (Round 1 - 4) / 90 minutes + 30 seconds per move from move one (Round 5 - 8)"]
[WhiteTitle "FM"]
[BlackTitle "IM"]
[WhiteFideId "1705180"]
[BlackFideId "1700146"]
[WhiteElo "2310"]
[BlackElo "2456"]

1. e4 {[%clk 00:15:04]} {[%emt 00:00:04]} e6 {[%clk 00:15:04]} {[%emt
00:00:06]} 2. d4 {[%clk 00:15:07]} {[%emt 00:00:02]} d5 {[%clk 00:15:08]} 3.
Nc3 {[%clk 00:15:10]} {[%emt 00:00:04]} Nf6 {[%clk 00:15:12]} 4. e5 {[%clk
00:15:12]} {[%emt 00:00:03]} Nfd7 {[%clk 00:15:16]} {[%emt 00:00:01]} 5. f4
{[%clk 00:15:15]} {[%emt 00:00:02]} c5 {[%clk 00:15:20]} {[%emt 00:00:01]} 6.
Nf3 {[%clk 00:15:18]} {[%emt 00:00:01]} Nc6 {[%clk 00:15:24]} {[%emt 00:00:01]}
7. Be3 {[%clk 00:15:21]} {[%emt 00:00:02]} Rb8 {[%clk 00:15:07]} {[%emt
00:00:21]} 8. Qd2 {[%clk 00:14:47]} {[%emt 00:00:40]} Qa5 {[%clk 00:14:50]}
{[%emt 00:00:23]} 9. Be2 {[%clk 00:13:08]} {[%emt 00:01:44]} b5 {[%clk
00:14:44]} {[%emt 00:00:11]} 10. O-O {[%clk 00:13:07]} {[%emt 00:00:05]} b4
{[%clk 00:14:40]} {[%emt 00:00:09]} 11. Nd1 {[%clk 00:13:09]} {[%emt 00:00:03]}
cxd4 {[%clk 00:14:24]} {[%emt 00:00:21]} 12. Nxd4 {[%clk 00:13:03]} {[%emt
00:00:11]} Nxd4 {[%clk 00:14:28]} {[%emt 00:00:01]} 13. Bxd4 {[%clk 00:12:57]}
{[%emt 00:00:11]} Bc5 {[%clk 00:14:32]} {[%emt 00:00:01]} 14. Ne3 {[%clk
00:12:03]} {[%emt 00:00:59]} Bxd4 {[%clk 00:13:49]} {[%emt 00:00:48]} 15. Qxd4
{[%clk 00:12:06]} {[%emt 00:00:02]} Qc5 {[%clk 00:13:26]} {[%emt 00:00:28]} 16.
Rfd1 {[%clk 00:11:44]} {[%emt 00:00:26]} O-O {[%clk 00:13:19]} {[%emt
00:00:12]} 17. g3 {[%clk 00:10:38]} {[%emt 00:01:11]} Qxd4 {[%clk 00:12:59]}
{[%emt 00:00:25]} 18. Rxd4 {[%clk 00:10:41]} {[%emt 00:00:03]} Nc5 {[%clk
00:13:04]} 19. Kf1 {[%clk 00:06:51]} {[%emt 00:03:56]} Bd7 {[%clk 00:11:33]}
{[%emt 00:01:36]} 20. a3 {[%clk 00:05:14]} {[%emt 00:01:42]} bxa3 {[%clk
00:10:53]} {[%emt 00:00:45]} 21. b3 {[%clk 00:05:08]} {[%emt 00:00:11]} Bb5
{[%clk 00:07:39]} {[%emt 00:03:19]} 22. Rxa3 {[%clk 00:04:39]} {[%emt
00:00:34]} a6 {[%clk 00:06:09]} {[%emt 00:01:35]} 23. Ra5 {[%clk 00:03:24]}
{[%emt 00:01:20]} Rb6 {[%clk 00:04:41]} {[%emt 00:01:34]} 24. Bxb5 {[%clk
00:00:50]} {[%emt 00:02:39]} axb5 {[%clk 00:04:24]} {[%emt 00:00:21]} 25. Rb4
{[%clk 00:00:30]} {[%emt 00:00:26]} Rfb8 {[%clk 00:04:27]} {[%emt 00:00:02]} 26.
c4 {[%clk 00:00:12]} {[%emt 00:00:23]} d4 {[%clk 00:04:31]} 27. Nc2 {[%clk
00:00:15]} {[%emt 00:00:02]} d3 {[%clk 00:03:38]} {[%emt 00:00:57]} 28. Ne3
{[%clk 00:00:19]} {[%emt 00:00:01]} Ne4 {[%clk 00:03:43]} 29. Raxb5 {[%clk
00:00:15]} {[%emt 00:00:09]} Rxb5 {[%clk 00:03:13]} {[%emt 00:00:35]} 30. cxb5
{[%clk 00:00:17]} {[%emt 00:00:03]} Nc3 {[%clk 00:03:15]} {[%emt 00:00:03]} 31.
b6 {[%clk 00:00:16]} {[%emt 00:00:06]} Kf8 {[%clk 00:02:54]} {[%emt 00:00:25]}
32. Ke1 {[%clk 00:00:15]} {[%emt 00:00:06]} Rd8 {[%clk 00:02:16]} {[%emt
00:00:43]} 0-1